fUST/lending_fUST_20250607
["ID","MTS","AMOUNT","RATE_DAILY","PERIOD"]
[364928136,1749307836828,-567.93,0.00020273,2]
[364928137,1749307836838,-440.0,0.00020273,2]
[364928138,1749307836847,-440.0,0.00020273,2]
[364928139,1749307836857,-440.0,0.00020273,2]
[364928140,1749307836868,-440.0,0.00020273,2]
[364928141,1749307836878,-440.0,0.00020273,2]
[364928142,1749307836887,-440.0,0.00020273,2]
[364928143,1749307836900,-462.43,0.00020273,2]
[364928144,1749307836910,-440.0,0.00020273,2]
[364928145,1749307836921,-440.0,0.00020273,2]
[364928146,1749307836931,-440.0,0.00020273,2]
[364928147,1749307836941,-440.0,0.00020273,2]
[364928148,1749307836951,-440.0,0.00020273,2]
[364928149,1749307836961,-1280.82,0.00020273,2]
[364928150,1749307836971,-440.0,0.00020273,2]
[364928151,1749307836982,-440.0,0.00020273,2]
[364928152,1749307836992,-440.0,0.00020273,2]
[364928153,1749307837002,-440.0,0.00020273,2]
[364928154,1749307837012,-573.99,0.00020273,2]
[364928155,1749307837022,-440.0,0.00020273,2]
[364928156,1749307837032,-440.0,0.00020273,2]
[364928157,1749307837044,-525.89121644,0.00020273,2]
[364928158,1749307837055,-639.39,0.00020273,2]
[364928159,1749307837065,-440.0,0.00020273,2]
[364928160,1749307837074,-1405.79,0.00020273,2]
[364928161,1749307837084,-1079.33,0.00020273,2]
[364928162,1749307837094,-634.15,0.00020273,2]
[364928163,1749307837104,-794.15,0.00020273,2]
[364928164,1749307837114,-440.0,0.00020273,2]
[364928165,1749307837124,-440.0,0.00020273,2]
[364928166,1749307837134,-440.0,0.00020273,2]
[364928167,1749307837145,-440.0,0.00020273,2]
[364928168,1749307837155,-440.0,0.00020273,2]
[364928169,1749307837165,-550.0,0.00020273,2]
[364928170,1749307837174,-930.41,0.00020273,2]
[364928171,1749307837184,-440.0,0.00020273,2]
[364928172,1749307837193,-440.0,0.00020273,2]
[364928173,1749307837203,-743.67,0.00020273,2]
[364928174,1749307837213,-440.0,0.00020273,2]
[364928175,1749307837223,-500.0,0.00020321,2]
[364928176,1749307837234,-500.0,0.00020321,2]
[364928177,1749307837243,-500.0,0.00020335,2]
[364928178,1749307837253,-500.0,0.00020335,2]
[364928179,1749307837263,-500.0,0.00020335,2]
[364928180,1749307837273,-265.73935326,0.00020335,2]
[364928181,1749307837283,-500.0,0.00020335,2]
[364928182,1749307837293,-500.0,0.00020335,2]
[364928183,1749307837303,-500.0,0.00020335,2]
[364928184,1749307837313,-471.46733273,0.00020353,2]
[364928185,1749307837324,-501.44023844,0.00020389,2]
[364928186,1749307837334,-11851.94353573,0.00020406,2]
[364928187,1749307837344,-229.56495552,0.00020412,2]
[364928188,1749307837355,-834.52263295,0.00020412,2]
[364928189,1749307837364,-500.0,0.00020437,2]
[364928190,1749307837374,-230.81824852,0.00020547,2]
[364928191,1749307837384,-440.0,0.00020547,2]
[364928192,1749307837393,-440.0,0.00020547,2]
[364928193,1749307837404,-440.0,0.00020547,2]
[364928194,1749307837414,-440.0,0.00020547,2]
[364928195,1749307837424,-440.0,0.00020547,2]
[364928196,1749307837434,-440.0,0.00020547,2]
[364928197,1749307837444,-440.0,0.00020547,2]
[364928198,1749307837454,-440.0,0.00020547,2]
[364928199,1749307837464,-440.0,0.00020547,2]
[364928200,1749307837473,-440.0,0.00020547,2]
[364928201,1749307837483,-440.0,0.00020547,2]
[364928202,1749307837492,-440.0,0.00020547,2]
[364928203,1749307837502,-423.86,0.00020547,2]
[364928204,1749307837516,-440.0,0.00020547,2]
[364928205,1749307837526,-462.43,0.00020547,2]
[364928206,1749307837536,-440.0,0.00020547,2]
[364928207,1749307837546,-440.0,0.00020547,2]
[364928208,1749307837556,-440.0,0.00020547,2]
[364928209,1749307837566,-440.0,0.00020547,2]
[364928210,1749307837576,-440.0,0.00020547,2]
[364928211,1749307837587,-1280.82,0.00020547,2]
[364928212,1749307837596,-440.0,0.00020547,2]
[364928213,1749307837606,-440.0,0.00020547,2]
[364928214,1749307837616,-440.0,0.00020547,2]
[364928215,1749307837627,-440.0,0.00020547,2]
[364928216,1749307837636,-440.0,0.00020547,2]
[364928217,1749307837646,-440.0,0.00020547,2]
[364928218,1749307837658,-639.39,0.00020547,2]
[364928219,1749307837674,-440.0,0.00020547,2]
[364928220,1749307837683,-1405.79,0.00020547,2]
[364928221,1749307837693,-1079.33,0.00020547,2]
[364928222,1749307837703,-634.15,0.00020547,2]
[364928223,1749307837714,-794.15,0.00020547,2]
[364928224,1749307837723,-440.0,0.00020547,2]
[364928225,1749307837733,-440.0,0.00020547,2]
[364928226,1749307837743,-440.0,0.00020547,2]
[364928227,1749307837754,-440.0,0.00020547,2]
[364928228,1749307837764,-440.0,0.00020547,2]
[364928229,1749307837774,-930.41,0.00020547,2]
[364928230,1749307837783,-440.0,0.00020547,2]
[364928231,1749307837794,-500.0,0.00020547,2]
[364928232,1749307837804,-440.0,0.00020547,2]
[364928234,1749307837815,-743.67,0.00020547,2]
[364928236,1749307837825,-440.0,0.00020547,2]
[364928237,1749307837834,-666.0,0.00020548,2]
[364928238,1749307837844,-538.0,0.000206,2]
[364928239,1749307837853,-1000.0,0.000208,4]
[364928240,1749307837863,-440.0,0.00020821,2]
[364928241,1749307837873,-440.0,0.00020821,2]
[364928242,1749307837882,-440.0,0.00020821,2]
[364928243,1749307837892,-440.0,0.00020821,2]
[364928244,1749307837909,-440.0,0.00020821,2]
[364928245,1749307837919,-440.0,0.00020821,2]
[364928246,1749307837930,-440.0,0.00020821,2]
[364928247,1749307837942,-440.0,0.00020821,2]
[364928249,1749307837952,-440.0,0.00020821,2]
[364928250,1749307837963,-443.74,0.00020821,2]
[364928251,1749307837975,-440.0,0.00020821,2]
[364928252,1749307837984,-440.0,0.00020821,2]
[364928253,1749307837994,-462.43,0.00020821,2]
[364928255,1749307838003,-440.0,0.00020821,2]
[364928256,1749307838014,-440.0,0.00020821,2]
[364928257,1749307838023,-440.0,0.00020821,2]
[364928258,1749307838034,-440.0,0.00020821,2]
[364928259,1749307838043,-1280.82,0.00020821,2]
[364928261,1749307838053,-440.0,0.00020821,2]
[364928262,1749307838064,-440.0,0.00020821,2]
[364928263,1749307838073,-440.0,0.00020821,2]
[364928264,1749307838082,-440.0,0.00020821,2]
[364928265,1749307838093,-440.0,0.00020821,2]
[364928266,1749307838103,-440.0,0.00020821,2]
[364928267,1749307838114,-639.39,0.00020821,2]
[364928269,1749307838126,-440.0,0.00020821,2]
[364928270,1749307838137,-1405.79,0.00020821,2]
[364928272,1749307838146,-1079.33,0.00020821,2]
[364928273,1749307838156,-634.15,0.00020821,2]
[364928274,1749307838167,-794.15,0.00020821,2]
[364928275,1749307838177,-440.0,0.00020821,2]
[364928276,1749307838187,-440.0,0.00020821,2]
[364928277,1749307838197,-440.0,0.00020821,2]
[364928278,1749307838206,-440.0,0.00020821,2]
[364928279,1749307838215,-440.0,0.00020821,2]
[364928280,1749307838225,-930.41,0.00020821,2]
[364928281,1749307838235,-440.0,0.00020821,2]
[364928282,1749307838246,-440.0,0.00020821,2]
[364928283,1749307838256,-743.67,0.00020821,2]
[364928284,1749307838266,-440.0,0.00020821,2]
[364928286,1749307838276,-500.0,0.00020855,2]
[364928288,1749307838286,-500.0,0.00020883,2]
[364928290,1749307838296,-1223.44509611,0.000209,4]
[364928292,1749307838306,-177.82865367,0.00020995,2]
[364928294,1749307838316,-1223.44509607,0.00021038,4]
[364928296,1749307838327,-440.0,0.00021095,2]
[364928298,1749307838337,-440.0,0.00021095,2]
[364928300,1749307838347,-440.0,0.00021095,2]
[364928301,1749307838357,-440.0,0.00021095,2]
[364928302,1749307838368,-440.0,0.00021095,2]
[364928303,1749307838377,-440.0,0.00021095,2]
[364928304,1749307838387,-440.0,0.00021095,2]
[364928305,1749307838397,-440.0,0.00021095,2]
[364928306,1749307838407,-440.0,0.00021095,2]
[364928307,1749307838417,-440.0,0.00021095,2]
[364928308,1749307838558,-440.0,0.00021095,2]
[364928309,1749307838570,-462.43,0.00021095,2]
[364928310,1749307838580,-440.0,0.00021095,2]
[364928311,1749307838589,-440.0,0.00021095,2]
[364928312,1749307838599,-440.0,0.00021095,2]
[364928313,1749307838609,-440.0,0.00021095,2]
[364928314,1749307838619,-1280.82,0.00021095,2]
[364928315,1749307838628,-440.0,0.00021095,2]
[364928316,1749307838640,-440.0,0.00021095,2]
[364928317,1749307838650,-440.0,0.00021095,2]
[364928318,1749307838659,-440.0,0.00021095,2]
[364928319,1749307838679,-440.0,0.00021095,2]
[364928320,1749307838692,-440.0,0.00021095,2]
[364928321,1749307838702,-639.39,0.00021095,2]
[364928322,1749307838713,-440.0,0.00021095,2]
[364928323,1749307838724,-1405.79,0.00021095,2]
[364928324,1749307838735,-1079.33,0.00021095,2]
[364928325,1749307838746,-634.15,0.00021095,2]
[364928326,1749307838757,-794.15,0.00021095,2]
[364928327,1749307838769,-440.0,0.00021095,2]
[364928328,1749307838780,-440.0,0.00021095,2]
[364928329,1749307838792,-440.0,0.00021095,2]
[364928330,1749307838802,-440.0,0.00021095,2]
[364928331,1749307838812,-440.0,0.00021095,2]
[364928332,1749307838823,-930.41,0.00021095,2]
[364928333,1749307838833,-440.0,0.00021095,2]
[364928334,1749307838844,-500.0,0.00021095,3]
[364928335,1749307838854,-440.0,0.00021095,2]
[364928336,1749307838864,-743.67,0.00021095,2]
[364928337,1749307838874,-440.0,0.00021095,2]
[364928338,1749307838885,-1223.44509607,0.00021176,4]
[364928339,1749307838897,-1223.44509607,0.00021314,5]
[364928340,1749307838908,-440.0,0.00021369,2]
[364928341,1749307838918,-440.0,0.00021369,2]
[364928342,1749307838930,-440.0,0.00021369,2]
[364928343,1749307838944,-440.0,0.00021369,2]
[364928344,1749307838955,-440.0,0.00021369,2]
[364928345,1749307838966,-440.0,0.00021369,2]
[364928346,1749307838977,-440.0,0.00021369,2]
[364928347,1749307838988,-440.0,0.00021369,2]
[364928348,1749307838998,-440.0,0.00021369,2]
[364928349,1749307839008,-440.0,0.00021369,2]
[364928350,1749307839019,-556.17392787,0.00021369,2]
[364928351,1749307839029,-462.43,0.00021369,2]
[364928352,1749307839039,-440.0,0.00021369,2]
[364928353,1749307839049,-440.0,0.00021369,2]
[364928354,1749307839062,-440.0,0.00021369,2]
[364928355,1749307839073,-440.0,0.00021369,2]
[364928356,1749307839084,-1280.82,0.00021369,2]
[364928357,1749307839094,-440.0,0.00021369,2]
[364928358,1749307839104,-440.0,0.00021369,2]
[364928359,1749307839115,-440.0,0.00021369,2]
[364928360,1749307839125,-440.0,0.00021369,2]
[364928361,1749307839136,-440.0,0.00021369,2]
[364928362,1749307839146,-440.0,0.00021369,2]
[364928363,1749307839158,-639.39,0.00021369,2]
[364928364,1749307839168,-440.0,0.00021369,2]
[364928365,1749307839179,-1405.79,0.00021369,2]
[364928366,1749307839189,-1079.33,0.00021369,2]
[364928367,1749307839199,-634.15,0.00021369,2]
[364928368,1749307839210,-794.15,0.00021369,2]
[364928369,1749307839220,-440.0,0.00021369,2]
[364928370,1749307839230,-440.0,0.00021369,2]
[364928371,1749307839241,-440.0,0.00021369,2]
[364928372,1749307839252,-440.0,0.00021369,2]
[364928373,1749307839262,-440.0,0.00021369,2]
[364928374,1749307839272,-930.41,0.00021369,2]
[364928375,1749307839282,-440.0,0.00021369,2]
[364928376,1749307839297,-440.0,0.00021369,2]
[364928377,1749307839307,-743.67,0.00021369,2]
[364928378,1749307839319,-440.0,0.00021369,2]
[364928379,1749307839332,-1223.44509607,0.00021452,5]
[364928380,1749307839343,-1223.44509607,0.0002159,5]
[364928381,1749307839354,-207.4,0.00021638,2]
[364928382,1749307839364,-440.0,0.00021643,2]
[364928383,1749307839375,-440.0,0.00021643,2]
[364928384,1749307839385,-440.0,0.00021643,2]
[364928385,1749307839395,-440.0,0.00021643,2]
[364928386,1749307839406,-440.0,0.00021643,2]
[364928387,1749307839417,-440.0,0.00021643,2]
[364928388,1749307839428,-440.0,0.00021643,2]
[364928389,1749307839438,-440.0,0.00021643,2]
[364928390,1749307839449,-440.0,0.00021643,2]
[364928391,1749307839459,-440.0,0.00021643,2]
[364928392,1749307839469,-462.43,0.00021643,2]
[364928393,1749307839480,-440.0,0.00021643,2]
[364928394,1749307839490,-440.0,0.00021643,2]
[364928395,1749307839500,-440.0,0.00021643,2]
[364928396,1749307839510,-440.0,0.00021643,2]
[364928397,1749307839522,-1280.82,0.00021643,2]
[364928398,1749307839532,-440.0,0.00021643,2]
[364928399,1749307839542,-440.0,0.00021643,2]
[364928400,1749307839553,-440.0,0.00021643,2]
[364928401,1749307839563,-440.0,0.00021643,2]
[364928402,1749307839572,-440.0,0.00021643,2]
[364928403,1749307839582,-440.0,0.00021643,2]
[364928404,1749307839592,-639.39,0.00021643,2]
[364928405,1749307839602,-440.0,0.00021643,2]
[364928406,1749307839612,-1405.79,0.00021643,2]
[364928407,1749307839624,-1079.33,0.00021643,2]
[364928408,1749307839634,-634.15,0.00021643,2]
[364928409,1749307839646,-794.15,0.00021643,2]
[364928410,1749307839656,-440.0,0.00021643,2]
[364928411,1749307839667,-440.0,0.00021643,2]
[364928412,1749307839677,-250.91656235,0.00021643,2]
[364928413,1749307839686,-440.0,0.00021643,2]
[364928414,1749307839696,-440.0,0.00021643,2]
[364928415,1749307839706,-930.41,0.00021643,2]
[364928416,1749307839716,-440.0,0.00021643,2]
[364928417,1749307839726,-440.0,0.00021643,2]
[364928418,1749307839737,-743.67,0.00021643,2]
[364928419,1749307839747,-440.0,0.00021643,2]
[364928420,1749307839758,-1223.44509607,0.00021728,5]
[364928421,1749307839768,-1000.0,0.000218,5]
[364928423,1749307839779,-1223.44509607,0.00021866,6]
[364928424,1749307839788,-440.0,0.00021917,2]
[364928425,1749307839801,-440.0,0.00021917,2]
[364928426,1749307839812,-440.0,0.00021917,2]
[364928427,1749307839823,-440.53746273,0.00021917,2]
[364928428,1749307839834,-440.0,0.00021917,2]
[364928429,1749307839844,-440.0,0.00021917,2]
[364928430,1749307839855,-440.0,0.00021917,2]
[364928431,1749307839866,-440.0,0.00021917,2]
[364928432,1749307839876,-440.0,0.00021917,2]
[364928433,1749307839886,-440.0,0.00021917,2]
[364928434,1749307839899,-462.43,0.00021917,2]
[364928435,1749307839913,-440.0,0.00021917,2]
[364928436,1749307839924,-440.0,0.00021917,2]
[364928437,1749307839935,-440.0,0.00021917,2]
[364928438,1749307839946,-440.0,0.00021917,2]
[364928439,1749307839956,-1280.82,0.00021917,2]
[364928440,1749307839965,-440.0,0.00021917,2]
[364928441,1749307839975,-440.0,0.00021917,2]
[364928442,1749307839986,-440.0,0.00021917,2]
[364928443,1749307839996,-440.0,0.00021917,2]
[364928444,1749307840006,-440.0,0.00021917,2]
[364928445,1749307840016,-500.0,0.00021917,2]
[364928446,1749307840026,-440.0,0.00021917,2]
[364928447,1749307840036,-639.39,0.00021917,2]
[364928448,1749307840048,-440.0,0.00021917,2]
[364928449,1749307840060,-1405.79,0.00021917,2]
[364928451,1749307840070,-1079.33,0.00021917,2]
[364928453,1749307840080,-634.15,0.00021917,2]
[364928454,1749307840090,-794.15,0.00021917,2]
[364928455,1749307840100,-440.0,0.00021917,2]
[364928456,1749307840111,-440.0,0.00021917,2]
[364928457,1749307840121,-440.0,0.00021917,2]
[364928459,1749307840131,-440.0,0.00021917,2]
[364928460,1749307840141,-930.41,0.00021917,2]
[364928462,1749307840150,-440.0,0.00021917,2]
[364928465,1749307840160,-440.0,0.00021917,2]
[364928467,1749307840170,-743.67,0.00021917,2]
[364928469,1749307840180,-440.0,0.00021917,2]
[364928471,1749307840191,-500.0,0.00021951,2]
[364928473,1749307840201,-1786.66,0.00021965,2]
[364928476,1749307840211,-500.0,0.00021973,2]
[364928479,1749307840221,-10000.0,0.00022,2]
[364928482,1749307840231,-1215.56,0.00022,7]
[364928485,1749307840240,-151.0,0.00022,7]
[364928488,1749307840251,-109637.24,0.00022,7]
[364928491,1749307840260,-32467.02,0.00022,2]
[364928494,1749307840271,-11851.94353573,0.00022,7]
[364928497,1749307840280,-151.0,0.00022,7]
[364928499,1749307840290,-151.0,0.00022,7]
[364928501,1749307840300,-151.0,0.00022,7]
[364928503,1749307840310,-292.522736,0.00022,7]
[364928505,1749307840320,-292.522736,0.00022,7]
[364928507,1749307840331,-338.081399,0.00022,7]
[364928509,1749307840342,-338.081399,0.00022,7]
[364928511,1749307840352,-151.0,0.00022,7]
[364928513,1749307840362,-1223.44509607,0.00022003,6]
[364928515,1749307840371,-1223.44509607,0.00022141,6]
[364928517,1749307840381,-153.0,0.00022171,3]
[364928519,1749307840391,-153.0,0.00022171,3]
[364928521,1749307840400,-153.0,0.00022171,3]
[364928523,1749307840409,-153.0,0.00022171,3]
[364928525,1749307840419,-154.20873316,0.00022171,3]
[364928527,1749307840430,-316.0,0.00022171,3]
[364928529,1749307840440,-316.0,0.00022171,3]
[364928531,1749307840450,-316.0,0.00022171,3]
[364928533,1749307840461,-316.0,0.00022171,3]
[364928535,1749307840472,-316.0,0.00022171,3]
[364928537,1749307840483,-316.0,0.00022171,3]
[364928539,1749307840493,-316.0,0.00022171,3]
[364928541,1749307840503,-315.9982552,0.00022171,3]
[364928543,1749307840513,-440.0,0.00022191,2]
[364928545,1749307840522,-440.0,0.00022191,2]
[364928547,1749307840533,-370.24323822,0.00022191,2]
[364928549,1749307840544,-440.0,0.00022191,2]
[364928551,1749307840554,-259.59578185,0.00022191,2]
[364928553,1749307840563,-440.0,0.00022191,2]
[364928555,1749307840573,-440.0,0.00022191,2]
[364928557,1749307840583,-440.0,0.00022191,2]
[364928559,1749307840593,-462.43,0.00022191,2]
[364928562,1749307840604,-270.99461765,0.00022191,2]
[364928564,1749307840613,-440.0,0.00022191,2]
[364928566,1749307840623,-440.0,0.00022191,2]
[364928568,1749307840634,-440.0,0.00022191,2]
[364928570,1749307840644,-1280.82,0.00022191,2]
[364928572,1749307840654,-440.0,0.00022191,2]
[364928574,1749307840663,-440.0,0.00022191,2]
[364928576,1749307840673,-440.0,0.00022191,2]
[364928578,1749307840682,-440.0,0.00022191,2]
[364928580,1749307840692,-440.0,0.00022191,2]
[364928582,1749307840702,-440.0,0.00022191,2]
[364928584,1749307840711,-639.39,0.00022191,2]
[364928586,1749307840721,-440.0,0.00022191,2]
[364928588,1749307840730,-1405.79,0.00022191,2]
[364928590,1749307840741,-1079.33,0.00022191,2]
[364928592,1749307840752,-634.15,0.00022191,2]
[364928594,1749307840762,-794.15,0.00022191,2]
[364928596,1749307840772,-440.0,0.00022191,2]
[364928598,1749307840782,-440.0,0.00022191,2]
[364928600,1749307840792,-440.0,0.00022191,2]
[364928602,1749307840801,-440.0,0.00022191,2]
[364928604,1749307840811,-930.41,0.00022191,2]
[364928608,1749307840833,-440.0,0.00022191,2]
[364928610,1749307840843,-440.0,0.00022191,2]
[364928612,1749307840853,-743.67,0.00022191,2]
[364928614,1749307840863,-150.32206632,0.00022191,2]
[364928616,1749307840873,-1223.44509607,0.00022279,6]
[364928618,1749307840883,-538.0,0.000223,7]
[364928620,1749307840893,-177.82865367,0.00022365,2]
[364928622,1749307840905,-500.0,0.00022388,2]
[364928624,1749307840916,-1223.44509607,0.00022417,7]
[364928626,1749307840925,-151.0,0.00022465,7]
[364928628,1749307840935,-151.0,0.00022465,7]
[364928631,1749307840948,-440.0,0.00022465,2]
[364928633,1749307840958,-151.0,0.00022465,7]
[364928635,1749307840969,-193.381088,0.00022465,7]
[364928637,1749307840980,-440.0,0.00022465,2]
[364928639,1749307840990,-211.725309,0.00022465,7]
[364928641,1749307841000,-440.0,0.00022465,2]
[364928643,1749307841011,-440.0,0.00022465,2]
[364928645,1749307841021,-440.0,0.00022465,2]
[364928647,1749307841031,-440.0,0.00022465,2]
[364928649,1749307841041,-462.43,0.00022465,2]
[364928651,1749307841051,-521.02577497,0.00022465,2]
[364928653,1749307841060,-440.0,0.00022465,2]
[364928655,1749307841070,-440.0,0.00022465,2]
[364928657,1749307841079,-1280.82,0.00022465,2]
[364928660,1749307841089,-440.0,0.00022465,2]
[364928662,1749307841099,-440.0,0.00022465,2]
[364928664,1749307841108,-440.0,0.00022465,2]
[364928666,1749307841118,-440.0,0.00022465,2]
[364928668,1749307841127,-440.0,0.00022465,2]
[364928670,1749307841137,-500.0,0.00022465,2]
[364928672,1749307841147,-440.0,0.00022465,2]
[364928674,1749307841157,-639.39,0.00022465,2]
[364928676,1749307841167,-440.0,0.00022465,2]
[364928678,1749307841176,-1405.79,0.00022465,2]
[364928680,1749307841186,-1079.33,0.00022465,2]
[364928682,1749307841196,-634.15,0.00022465,2]
[364928684,1749307841206,-864.11233,0.00022465,7]
[364928686,1749307841215,-794.15,0.00022465,2]
[364928688,1749307841226,-440.0,0.00022465,2]
[364928690,1749307841235,-864.11233,0.00022465,7]
[364928692,1749307841245,-440.0,0.00022465,2]
[364928694,1749307841255,-440.0,0.00022465,2]
[364928696,1749307841266,-440.0,0.00022465,2]
[364928698,1749307841276,-930.41,0.00022465,2]
[364928700,1749307841286,-231.66023642,0.00022465,2]
[364928702,1749307841295,-440.0,0.00022465,2]
[364928704,1749307841306,-743.67,0.00022465,2]
[364928706,1749307841316,-1001.78136129,0.00022521,2]
[364928709,1749307841326,-1223.44509607,0.00022555,7]
[364928710,1749307841336,-1223.44509607,0.00022693,7]
[364928713,1749307841346,-440.0,0.00022739,2]
[364928714,1749307841356,-440.0,0.00022739,2]
[364928716,1749307841365,-440.0,0.00022739,2]
[364928719,1749307841376,-440.0,0.00022739,2]
[364928720,1749307841386,-440.0,0.00022739,2]
[364928723,1749307841396,-440.0,0.00022739,2]
[364928725,1749307841406,-462.43,0.00022739,2]
[364928727,1749307841416,-355.07431858,0.00022739,2]
[364928729,1749307841425,-440.0,0.00022739,2]
[364928731,1749307841435,-1280.82,0.00022739,2]
[364928733,1749307841445,-440.0,0.00022739,2]
[364928734,1749307841454,-440.0,0.00022739,2]
[364928736,1749307841464,-440.0,0.00022739,2]
[364928739,1749307841474,-440.0,0.00022739,2]
[364928741,1749307841484,-440.0,0.00022739,2]
[364928743,1749307841494,-168.47000001,0.00022739,2]
[364928745,1749307841504,-639.39,0.00022739,2]
[364928747,1749307841514,-440.0,0.00022739,2]
[364928749,1749307841524,-1405.79,0.00022739,2]
[364928751,1749307841534,-1079.33,0.00022739,2]
[364928753,1749307841544,-634.15,0.00022739,2]
[364928755,1749307841554,-338.081399,0.00022739,7]
[364928757,1749307841564,-794.15,0.00022739,2]
[364928759,1749307841574,-338.081399,0.00022739,7]
[364928761,1749307841584,-440.0,0.00022739,2]
[364928763,1749307841594,-370.8800002,0.00022739,2]
[364928765,1749307841603,-440.0,0.00022739,2]
[364928767,1749307841613,-440.0,0.00022739,2]
[364928769,1749307841622,-930.41,0.00022739,2]
[364928771,1749307841632,-440.0,0.00022739,2]
[364928773,1749307841642,-743.67,0.00022739,2]
[364928775,1749307841652,-1223.44509607,0.00022831,8]
[364928776,1749307841662,-2225.0,0.0002286,2]
[364928777,1749307841672,-709.0,0.0002286,2]
[364928779,1749307841682,-405.0,0.0002286,2]
[364928781,1749307841692,-1223.44509607,0.00022969,8]
[364928783,1749307841701,-292.522736,0.00022969,7]
[364928785,1749307841712,-292.522736,0.00022969,7]
[364928787,1749307841722,-151.0,0.00022969,7]
[364928789,1749307841731,-24081.1882996,0.00023,7]
[364928790,1749307841741,-715.84,0.00023,2]
[364928791,1749307841751,-151.0,0.00023,7]
[364928793,1749307841913,-187.0,0.00023,7]
[364928794,1749307841926,-215.0738,0.00023007,2]
[364928795,1749307841936,-151.0,0.00023013,7]
[364928796,1749307841946,-440.0,0.00023013,2]
[364928797,1749307841957,-440.0,0.00023013,2]
[364928798,1749307841967,-440.0,0.00023013,2]
[364928799,1749307841979,-440.0,0.00023013,2]
[364928800,1749307841990,-270.07,0.00023013,2]
[364928801,1749307842000,-260.05602859,0.00023013,2]
[364928802,1749307842011,-462.43,0.00023013,2]
[364928803,1749307842022,-440.0,0.00023013,2]
[364928804,1749307842032,-1280.82,0.00023013,2]
[364928805,1749307842041,-440.0,0.00023013,2]
[364928806,1749307842051,-440.0,0.00023013,2]
[364928807,1749307842060,-440.0,0.00023013,2]
[364928808,1749307842070,-440.0,0.00023013,2]
[364928809,1749307842079,-440.0,0.00023013,2]
[364928810,1749307842089,-500.0,0.00023013,2]
[364928811,1749307842099,-639.39,0.00023013,2]
[364928812,1749307842109,-440.0,0.00023013,2]
[364928813,1749307842119,-1405.79,0.00023013,2]
[364928814,1749307842129,-1079.33,0.00023013,2]
[364928815,1749307842139,-634.15,0.00023013,2]
[364928816,1749307842150,-794.15,0.00023013,2]
[364928817,1749307842161,-440.0,0.00023013,2]
[364928818,1749307842170,-440.0,0.00023013,2]
[364928819,1749307842180,-440.0,0.00023013,2]
[364928820,1749307842189,-930.41,0.00023013,2]
[364928821,1749307842199,-440.0,0.00023013,2]
[364928822,1749307842209,-743.67,0.00023013,2]
[364928823,1749307842219,-500.0,0.00023047,2]
[364928824,1749307842229,-151.0,0.00023095,7]
[364928825,1749307842239,-151.0,0.00023095,7]
[364928826,1749307842249,-1223.44509607,0.00023107,8]